bitfinex-derivatives/quotes_SOLF0:USTF0_20250706
["timestamp","ask_amount","ask_price","bid_price","bid_amount"]
[1751844937248,2.67419649,151.52,151.45,2.67419649]
[1751844937652,9.27319649,151.52,151.49,6.5997]
[1751844938256,9.27319649,151.52,151.5,6.5996]
[1751844938655,6.5992,151.51,151.45,2.67419649]
[1751844938855,2.67419649,151.52,151.45,2.67419649]
[1751844939156,45.34,151.56,151.45,2.67419649]
[1751844939353,2.67419649,151.53,151.45,2.67419649]
[1751844939758,9.27279649,151.53,151.45,2.67419649]
[1751844940358,9.27279649,151.53,151.5,6.5994]
[1751844941060,6.5988,151.52,151.5,6.5994]
[1751844941259,2.67419649,151.53,151.5,6.5994]
[1751844941560,9.27279649,151.53,151.5,6.5994]
[1751844941957,2.67419649,151.51,151.42,2.82419784]
[1751844942159,244.83087584,151.5,151.42,1.67556926]
[1751844942356,2.67419649,151.45,151.42,1.67556926]
[1751844942558,9.27599649,151.45,151.42,8.27836926]
[1751844942751,9.27599649,151.45,151.42,1.67556926]
[1751844942959,4.5079,151.5,151.47,6.6006]
[1751844943153,2.67419649,151.48,151.42,1.67556926]
[1751844943461,2.67419649,151.46,151.43,6.6023]
[1751844943761,2.67419649,151.46,151.42,1.67556926]
[1751844944358,2.67419649,151.46,151.43,6.6026]
[1751844944662,9.27569649,151.46,151.43,6.6026]
[1751844945161,2.67419649,151.46,151.42,1.67556926]
[1751844945663,2.67419649,151.46,151.43,6.6025]
[1751844946663,9.27579649,151.46,151.43,6.6025]
[1751844947759,2.67419649,151.46,151.42,1.67556926]
[1751844949565,9.27569649,151.46,151.44,6.6022]
[1751844950666,2.67419649,151.46,151.44,6.6022]
[1751844953668,9.27559649,151.46,151.44,6.6022]
[1751844954569,2.67419649,151.46,151.42,1.67556926]
[1751844954864,45.34,151.45,151.42,1.67556926]
[1751844955164,48.01419649,151.45,151.43,6.6025]
[1751844955359,48.01419649,151.45,151.42,1.67556926]
[1751844955558,2.1778,151.49,151.42,1.67556926]
[1751844955761,48.03419649,151.49,151.43,2.67419649]
[1751844956167,54.63449649,151.49,151.42,1.67556926]
[1751844956367,54.63449649,151.49,151.42,4.34976575]
[1751844956563,45.36,151.49,151.44,2.67419649]
[1751844956866,45.36,151.49,151.48,6.6005]
[1751844957264,45.36,151.49,151.47,6.6007]
[1751844958069,54.63429649,151.49,151.43,2.3624]
[1751844959368,6.6007,151.48,151.43,2.3624]
[1751844960679,54.63449649,151.49,151.43,2.3624]
[1751844960876,45.36,151.49,151.44,2.67419649]
[1751844961076,45.36,151.49,151.48,6.6005]
[1751844965682,45.36,151.49,151.44,2.67419649]
[1751844966474,48.03419649,151.49,151.43,5.03659649]
[1751844966875,54.63429649,151.49,151.44,6.6019]
[1751844967077,54.63429649,151.49,151.43,5.03659649]
[1751844967478,48.03419649,151.49,151.47,6.6007]
[1751844968780,54.63449649,151.49,151.47,6.6007]
[1751844970384,45.36,151.49,151.48,6.6005]
[1751844972084,190.92,151.52,151.45,2.67419649]
[1751844972285,190.92,151.52,151.42,1.67556926]
[1751844972481,2.68557701,151.44,151.42,8.27866926]
[1751844972683,194.64557701,151.44,151.42,1.67556926]
[1751844974791,2.68557701,151.46,151.42,1.67556926]
[1751844975082,194.76557701,151.46,151.42,1.67556926]
[1751844975793,194.76557701,151.46,151.43,6.6025]
[1751844976590,194.76557701,151.46,151.44,6.6022]
[1751844977891,192.08,151.46,151.44,6.6022]
[1751844978093,194.76557701,151.46,151.44,6.6022]
[1751844978691,194.76557701,151.46,151.45,6.6018]
[1751844979286,194.70557701,151.46,151.45,6.6018]
[1751844980191,194.68557701,151.46,151.45,6.6018]
[1751844980987,194.68557701,151.46,151.44,6.6021]
[1751844981390,194.68557701,151.46,151.42,1.67556926]
[1751844981594,194.68557701,151.46,151.45,6.6018]
[1751844981889,7.14520991,151.46,151.45,6.6018]
[1751844982091,199.10520991,151.46,151.42,1.67556926]
[1751844982285,194.64557701,151.46,151.42,1.67556926]
[1751844982493,194.64557701,151.46,151.44,6.602]
[1751844982790,194.64557701,151.46,151.42,1.67556926]
[1751844983592,194.64557701,151.46,151.44,6.6019]
[1751844984091,2.68557701,151.46,151.44,6.6019]
[1751844984291,194.56557701,151.46,151.44,6.6019]
[1751844985998,194.54557701,151.46,151.44,6.6019]
[1751844986395,194.54557701,151.46,151.45,6.6018]
[1751844986696,199.021339,151.46,151.45,6.6018]
[1751844987196,199.021339,151.46,151.44,6.6021]
[1751844987396,194.54557701,151.46,151.44,6.6021]
[1751844995506,9.04503665,151.55,151.44,2.68557701]
[1751844995807,12.06004887,151.57,151.44,2.68557701]
[1751844995808,2.68557701,151.52,151.44,2.68557701]
[1751844996004,11.07469126,151.51,151.48,6.6002]
[1751844996206,4.47494124,151.5,151.44,2.68557701]
[1751844996407,191.64,151.51,151.44,2.68557701]
[1751844996598,4.47517681,151.5,151.44,2.68557701]
[1751844996797,191.64,151.51,151.44,2.68557701]
[1751844997106,4.47517681,151.5,151.44,2.68557701]
[1751844997309,2.68557701,151.52,151.44,48.24557701]
[1751844997503,4.50591231,151.51,151.44,48.24557701]
[1751844997807,4.50591231,151.5,151.49,6.5999]
[1751845004610,9.28417701,151.53,151.5,6.5996]
[1751845005011,4.55811928,151.52,151.5,6.5996]
[1751845005212,4.55811928,151.51,151.5,6.5996]
[1751845007208,4.55811928,151.51,151.44,45.56]
[1751845007415,4.55811928,151.5,151.44,48.24557701]
[1751845007712,2.68557701,151.51,151.44,48.24557701]
[1751845008013,4.55752265,151.5,151.48,6.6002]
[1751845008312,9.28497701,151.51,151.48,6.6002]
[1751845008510,4.55745734,151.5,151.49,6.6001]
[1751845010515,9.28407701,151.53,151.51,6.5991]
[1751845010717,4.55728691,151.52,151.51,6.5991]
[1751845014018,9.28407701,151.53,151.51,6.5991]
[1751845014317,4.5558285,151.52,151.51,6.5991]
[1751845014517,9.28407701,151.53,151.51,6.5991]
[1751845014719,4.5558285,151.52,151.51,6.5991]
[1751845020322,4.55650512,151.52,151.51,6.5991]
[1751845020829,4.55650512,151.52,151.46,2.68557701]
[1751845020830,11.15530512,151.52,151.5,6.5994]
[1751845021126,4.55650512,151.51,151.5,6.5994]
[1751845022429,9.28417701,151.53,151.5,6.5994]
[1751845022627,4.55686993,151.52,151.5,6.5994]
[1751845022827,4.55686993,151.51,151.5,6.5994]
[1751845023323,4.5571383,151.51,151.5,6.5994]
[1751845024426,2.68557701,151.56,151.48,2.68557701]
[1751845024927,2.68557701,151.56,151.53,6.5981]
[1751845025530,9.28287701,151.56,151.53,6.5981]
[1751845026930,9.28287701,151.56,151.49,45.36]
[1751845027326,2.68557701,151.58,151.5,2.68557701]
[1751845027532,2.48240695,151.57,151.55,6.5973]
[1751845027830,9.28187701,151.58,151.52,2.68557701]
[1751845028030,2.48246433,151.57,151.55,6.5972]
[1751845028223,2.68557701,151.58,151.55,6.5972]
[1751845029628,6.5967,151.57,151.55,6.5972]
[1751845031637,9.28187701,151.58,151.55,6.5972]
[1751845031836,9.28187701,151.58,151.52,2.68557701]
[1751845032037,195.4367,151.59,151.52,2.68557701]
[1751845032240,2.68557701,151.58,151.52,2.68557701]
[1751845032945,6.5966,151.57,151.52,2.68557701]
[1751845034540,6.5966,151.57,151.55,6.5974]
[1751845034944,9.28197701,151.58,151.55,6.5974]
[1751845035344,2.68557701,151.58,151.55,6.5974]
[1751845036547,4.54899843,151.57,151.54,6.5977]
[1751845036748,4.54899843,151.56,151.54,6.5977]
[1751845036945,4.54919312,151.55,151.49,45.36]
[1751845037247,1.71592032,151.51,151.5,6.5996]
[1751845037547,1.71592032,151.52,151.49,45.36]
[1751845037748,1.71592032,151.52,151.51,6.5989]
[1751845038854,9.28077198,151.54,151.51,6.5989]
[1751845039050,4.55052904,151.53,151.51,6.5989]
[1751845039350,4.55052904,151.52,151.49,45.36]
[1751845039551,2.68257198,151.53,151.49,45.36]
[1751845039751,4.55200066,151.52,151.49,45.36]
[1751845039951,2.68257198,151.53,151.49,45.36]
[1751845040152,4.55200083,151.52,151.49,45.36]
[1751845040453,2.68257198,151.53,151.51,6.5989]
[1751845040655,4.55344107,151.52,151.51,6.5989]
[1751845041155,4.55373723,151.52,151.51,6.5989]
[1751845041855,4.55373723,151.52,151.5,6.5995]
[1751845042056,9.28097198,151.53,151.5,6.5995]
[1751845042354,4.55361243,151.52,151.5,6.5995]
[1751845042554,9.28097198,151.53,151.5,6.5995]
[1751845042752,4.55361243,151.52,151.51,6.5992]
[1751845044058,11.15241243,151.52,151.5,6.5995]
[1751845044257,6.5988,151.52,151.5,6.5995]
[1751845045459,9.28107198,151.53,151.51,6.5991]
[1751845045659,4.52096596,151.52,151.51,6.5991]
[1751845046260,4.52081451,151.52,151.51,6.5991]
[1751845050464,6.5985,151.53,151.51,6.5991]
[1751845050666,4.49986433,151.52,151.51,6.5991]
[1751845059765,1.71661435,151.53,151.51,6.5991]
[1751845059973,4.5175396,151.52,151.51,6.5991]
[1751845060272,1.71661435,151.53,151.52,6.5988]
[1751845060470,6.23438589,151.53,151.52,6.5988]
[1751845061174,4.51777154,151.53,151.52,6.5988]
[1751845065580,1.71661435,151.58,151.52,1.71661435]
[1751845065778,7.02365711,151.57,151.54,1.71661435]
[1751845065972,4.53619101,151.56,151.55,6.5975]
[1751845066171,4.53619101,151.56,151.55,8.31411435]
[1751845066369,45.34,151.6,151.59,6.5957]
[1751845066575,4.53557018,151.6,151.59,6.5957]
[1751845069071,4.53212923,151.6,151.59,6.5957]
[1751845069277,4.53046245,151.6,151.59,6.5957]
[1751845069574,6.5946,151.62,151.59,6.5957]
[1751845069779,4.53055914,151.61,151.59,6.5957]
[1751845069976,4.53055914,151.6,151.59,6.5957]
[1751845071379,4.53055914,151.6,151.58,6.5959]
[1751845071678,6.595,151.61,151.58,6.5959]
[1751845071879,4.52798028,151.6,151.58,6.5959]
[1751845072071,6.5954,151.6,151.58,6.5959]
[1751845072270,4.52590331,151.59,151.58,6.5959]
[1751845075379,6.5953,151.6,151.58,6.5959]
[1751845076779,9.27430901,151.61,151.59,6.5955]
[1751845077175,6.5946,151.62,151.55,2.67920901]
[1751845077376,4.38049076,151.61,151.55,2.67920901]
[1751845077581,5.02260901,151.63,151.55,2.67920901]
[1751845077775,4.36978417,151.62,151.6,6.5951]
[1751845077980,2.67920901,151.63,151.6,6.5951]
[1751845078280,4.36978417,151.62,151.6,6.5951]
[1751845078580,6.5944,151.62,151.6,6.5951]
[1751845080576,9.27340901,151.63,151.55,2.67920901]
[1751845081183,6.5942,151.63,151.61,6.5946]
[1751845081380,6.5942,151.63,151.55,2.67920901]
[1751845082785,6.5942,151.63,151.61,6.5948]
[1751845082984,49.9545,151.64,151.57,2.67920901]
[1751845083283,49.9545,151.64,151.54,58.5355]
[1751845083284,49.9545,151.64,151.59,2.67920901]
[1751845083482,4.6145,151.64,151.59,2.67920901]
[1751845084584,4.6145,151.64,151.63,6.594]
[1751845085388,4.6145,151.64,151.62,6.5942]
[1751845085886,4.6145,151.64,151.63,6.594]
[1751845087889,4.6145,151.64,151.62,6.5942]
[1751845088088,4.6145,151.64,151.58,2.67920901]
[1751845088490,4.6145,151.64,151.62,6.5941]
[1751845088785,1.71439025,151.63,151.62,6.5941]
[1751845091191,4.6145,151.64,151.62,6.5941]
[1751845091490,1.71439025,151.63,151.62,6.5941]
[1751845091693,4.6145,151.64,151.63,6.594]
[1751845091988,6.32889025,151.64,151.63,6.594]
[1751845095391,4.6145,151.64,151.63,6.594]
[1751845095586,6.32889025,151.64,151.63,6.594]
[1751845098095,4.6145,151.64,151.63,6.594]
[1751845098291,6.32889025,151.64,151.63,6.594]
[1751845099993,12.92249025,151.64,151.62,6.5942]
[1751845100893,6.32889025,151.64,151.62,6.5942]
[1751845101093,4.6145,151.64,151.63,6.594]
[1751845101396,1.71439025,151.66,151.62,1.71439025]
[1751845101598,1.71439025,151.65,151.63,6.5937]
[1751845102593,1.71439025,151.65,151.64,6.5936]
[1751845103198,1.71439025,151.66,151.64,6.5936]
[1751845103393,1.71439025,151.66,151.65,6.5931]
[1751845103597,6.12550337,151.66,151.65,6.5931]
[1751845105196,4.41111312,151.66,151.65,6.5931]
[1751845105390,6.12550337,151.66,151.65,6.5931]
[1751845105590,6.12550337,151.66,151.64,6.5934]
[1751845105791,1.71439025,151.65,151.61,1.71439025]
[1751845105997,1.71439025,151.63,151.59,47.01439025]
[1751845106298,1.71439025,151.64,151.63,6.5937]
[1751845107094,6.13093693,151.64,151.63,6.5937]
[1751845107802,4.41654668,151.64,151.63,6.5937]
[1751845107999,6.13093693,151.64,151.63,6.5937]
[1751845108499,4.41654668,151.64,151.63,6.5937]
[1751845108701,6.13093693,151.64,151.63,6.5937]
[1751845110094,4.41654668,151.64,151.63,6.5937]
[1751845112699,1.71439025,151.65,151.64,6.5936]
[1751845112900,4.43687591,151.65,151.64,6.5936]
[1751845115608,1.71439025,151.67,151.65,6.5928]
[1751845115809,4.4262092,151.66,151.65,1.71439025]
[1751845116508,4.4262092,151.66,151.64,1.71439025]
[1751845116708,45.32,151.68,151.66,6.5924]
[1751845116910,4.42611039,151.67,151.66,6.5924]
[1751845119409,45.28,151.72,151.66,1.71439025]
[1751845119713,1.71439025,151.74,151.7,1.71439025]
[1751845119912,10.51300311,151.73,151.7,1.71439025]
[1751845120112,2.43965297,151.72,151.71,8.30489025]
[1751845120307,58.08539025,151.76,151.71,1.71439025]
[1751845120607,10.50839943,151.75,151.72,1.71439025]
[1751845120914,58.08539025,151.76,151.66,1.8834]
[1751845120915,2.43914664,151.74,151.71,2.67412904]
[1751845121108,56.371,151.76,151.73,6.5894]
[1751845121314,2.47259319,151.75,151.73,6.5894]
[1751845121613,56.371,151.76,151.73,6.5894]
[1751845121815,2.47269456,151.75,151.73,6.5894]
[1751845122113,2.4730617,151.74,151.73,6.5894]
[1751845122314,56.371,151.76,151.73,6.5894]
[1751845122514,56.371,151.76,151.74,6.5892]
[1751845122515,2.47135081,151.75,151.74,6.5892]
[1751845123109,2.47135081,151.75,151.71,2.67412904]
[1751845123412,56.371,151.76,151.73,6.5894]
[1751845123614,2.47009243,151.75,151.73,6.5894]
[1751845123912,56.371,151.76,151.73,6.5894]
[1751845124113,2.47009243,151.75,151.74,6.5892]
[1751845124313,11.091,151.76,151.74,6.5892]
[1751845124510,4.5024,151.76,151.71,2.67412904]
[1751845124715,2.3195,151.76,151.75,6.5888]
[1751845125315,6.5877,151.78,151.75,6.5888]
[1751845125715,6.5883,151.77,151.69,45.26]
[1751845125914,2.67412904,151.78,151.71,2.67412904]
[1751845126318,6.5884,151.76,151.74,6.5892]
[1751845126514,2.67412904,151.78,151.74,6.5892]
[1751845126914,6.5882,151.77,151.74,6.5892]
[1751845127914,6.5882,151.77,151.75,6.5887]
[1751845128815,6.5882,151.77,151.74,6.5889]
[1751845129015,6.5884,151.76,151.74,6.5889]
[1751845129520,6.5882,151.77,151.75,6.5888]
[1751845130621,2.67412904,151.78,151.75,6.5888]
[1751845131221,6.5879,151.77,151.75,6.5888]
[1751845131522,2.67412904,151.78,151.76,6.5883]
[1751845131718,4.52861113,151.77,151.76,6.5883]
[1751845132124,240.3974,151.8,151.75,2.67412904]
[1751845132322,49.8174,151.8,151.75,2.67412904]
[1751845132526,45.26,151.8,151.75,2.67412904]
[1751845132821,6.5864,151.81,151.78,6.5871]
[1751845133221,4.93002904,151.83,151.75,2.67412904]
[1751845133222,4.93002904,151.83,151.79,6.5867]
[1751845133526,11.1098548,151.82,151.77,2.67412904]
[1751845133825,6.5859,151.82,151.79,6.5867]
[1751845135127,6.5859,151.82,151.8,6.5865]
[1751845135626,6.5859,151.82,151.77,2.67412904]
[1751845135929,6.5859,151.82,151.79,6.5868]
[1751845137126,6.5855,151.83,151.77,2.67412904]
[1751845137728,6.5855,151.83,151.8,6.5863]
[1751845137922,6.5858,151.82,151.8,6.5863]
[1751845140229,6.5855,151.83,151.8,6.5863]
[1751845140928,4.55982123,151.82,151.8,6.5863]
[1751845141131,4.55982123,151.82,151.81,6.5862]
[1751845141431,11.14562123,151.82,151.76,2.67412904]
[1751845141625,6.5858,151.82,151.76,2.67412904]
[1751845141927,9.25992904,151.82,151.76,2.67412904]
[1751845142327,9.25992904,151.82,151.79,6.5868]
[1751845145324,2.67412904,151.82,151.74,45.24]
[1751845145623,2.67412904,151.8,151.74,47.91412904]
[1751845146225,9.26112904,151.8,151.74,47.91412904]
[1751845146421,2.67412904,151.78,151.71,2.67412904]
[1751845146826,9.26272904,151.76,151.73,6.5892]
[1751845147229,9.26272904,151.76,151.74,6.589]
[1751845147627,2.67412904,151.76,151.7,45.24]
[1751845148025,2.67412904,151.76,151.75,6.5888]
[1751845148233,6.5877,151.78,151.75,6.5888]
[1751845148234,9.26182904,151.78,151.75,6.5888]
[1751845148426,4.85752904,151.8,151.77,6.5876]
[1751845148730,9.26072904,151.8,151.73,2.67412904]
[1751845149123,9.26072904,151.8,151.78,6.5874]
[1751845149929,9.26072904,151.8,151.77,6.5877]
[1751845150530,9.26072904,151.8,151.78,6.5874]
[1751845150724,9.26072904,151.8,151.73,2.67412904]
[1751845151126,4.53558276,151.79,151.76,6.5881]
[1751845151326,4.53588593,151.78,151.76,6.5881]
[1751845151526,6.5877,151.78,151.76,6.5881]
[1751845153332,4.55970242,151.77,151.76,6.5881]
[1751845160236,8.9276,151.8,151.77,6.5876]
[1751845160538,4.57491232,151.79,151.77,6.5876]
[1751845160737,4.57491232,151.78,151.77,6.5876]
[1751845163243,6.5871,151.79,151.77,6.5876]
[1751845163445,4.56418215,151.78,151.76,6.5881]
[1751845163642,4.56418215,151.77,151.76,6.5881]
[1751845165340,7.09530318,151.77,151.76,6.5881]
[1751845169348,6.5876,151.78,151.76,6.5881]
[1751845169648,7.12931572,151.77,151.76,6.5881]
[1751845169950,7.13052122,151.77,151.76,6.5881]
[1751845170146,4.58794028,151.77,151.76,6.5881]
[1751845170342,7.13071813,151.77,151.76,6.5881]
[1751845172652,7.13189774,151.77,151.76,6.5881]
[1751845173940,49.6416,151.81,151.75,2.67412904]
[1751845174146,54.30847858,151.85,151.78,2.67412904]
[1751845174345,8.20313449,151.84,151.78,2.67412904]
[1751845174551,14.78853449,151.83,151.78,2.67412904]
[1751845174847,6.5854,151.83,151.8,1.70975474]
[1751845175449,8.29515474,151.83,151.79,1.70975474]
[1751845175850,8.29515474,151.83,151.8,6.5862]
[1751845176843,6.5854,151.83,151.8,6.5862]
[1751845177452,6.5854,151.83,151.81,6.5861]
[1751845179954,47.89188995,151.85,151.78,2.67188995]
[1751845180155,8.24027183,151.84,151.78,2.67188995]
[1751845180356,47.89188995,151.85,151.78,2.67188995]
[1751845180556,8.23943508,151.84,151.78,2.67188995]
[1751845180856,6.5851,151.84,151.82,6.5855]
[1751845181253,45.22,151.85,151.8,2.67188995]
[1751845181455,8.23862658,151.84,151.8,2.67188995]
[1751845181758,45.22,151.85,151.8,2.67188995]
[1751845181953,8.23763155,151.84,151.8,2.67188995]
[1751845182160,45.22,151.85,151.76,47.87188995]
[1751845182161,51.8045,151.85,151.76,47.87188995]
[1751845182350,51.8045,151.85,151.79,2.67188995]
[1751845183555,51.8045,151.85,151.82,6.5854]
[1751845183754,6.5851,151.84,151.82,6.5854]
[1751845185760,6.5851,151.84,151.76,45.2]
[1751845185761,6.875,151.87,151.83,2.67188995]
[1751845185959,10.64815193,151.86,151.81,2.67188995]
[1751845186161,4.3474943,151.85,151.83,6.585]
[1751845186356,4.3474943,151.84,151.83,6.585]
[1751845186554,4.3474943,151.84,151.82,6.5855]
[1751845186756,6.5847,151.85,151.82,6.5855]
[1751845186953,4.34692436,151.84,151.81,2.67188995]
[1751845187261,6.5847,151.85,151.81,2.67188995]
[1751845187454,4.34590434,151.84,151.83,6.5851]
[1751845188064,6.5847,151.85,151.83,6.5851]
[1751845188264,4.34590435,151.84,151.83,6.5851]
[1751845189663,4.34590435,151.84,151.77,13.1754]
[1751845189963,2.67188995,151.86,151.8,2.67188995]
[1751845190156,4.36651229,151.85,151.8,2.67188995]
[1751845190356,4.36651229,151.84,151.82,6.5855]
[1751845190555,2.67188995,151.86,151.82,6.5855]
[1751845190764,4.36591163,151.85,151.82,6.5855]
[1751845190961,4.36591163,151.84,151.82,6.5855]
[1751845191258,6.5845,151.85,151.82,6.5855]
[1751845191562,4.36515224,151.84,151.82,6.5855]
[1751845191764,6.5845,151.85,151.82,6.5855]
[1751845191959,4.36515224,151.84,151.82,6.5855]
[1751845192262,6.5845,151.85,151.82,6.5855]
[1751845192464,6.5845,151.85,151.83,6.5853]
[1751845192764,6.5845,151.85,151.79,2.67188995]
[1751845192968,6.5845,151.85,151.82,6.5855]
[1751845193465,6.5849,151.84,151.82,6.5855]
[1751845194560,6.5846,151.85,151.79,2.67188995]
[1751845194762,4.36123511,151.84,151.79,2.67188995]
[1751845194959,7.03340568,151.83,151.69,13.1825]
[1751845195164,6.5871,151.79,151.77,6.5878]
[1751845197076,6.5868,151.8,151.77,6.5878]
[1751845198676,2.67188995,151.79,151.73,47.85188995]
[1751845199268,6.5877,151.78,151.75,6.5885]
[1751845199675,6.5882,151.77,151.74,6.589]
[1751845201373,6.5882,151.77,151.71,2.67188995]
[1751845201374,6.5882,151.77,151.75,6.5887]
[1751845208280,6.5882,151.77,151.74,6.589]
[1751845208479,6.93110883,151.76,151.69,47.85188995]
[1751845208680,2.67188995,151.74,151.67,2.67188995]
[1751845208979,9.26228995,151.72,151.65,619.14198995]
[1751845209181,9.26228995,151.72,151.69,6.591]
[1751845210280,6.5906,151.71,151.69,6.591]
[1751845210478,2.67188995,151.72,151.65,50.24198995]
[1751845211380,9.26198995,151.72,151.7,6.5908]
[1751845211677,2.67188995,151.72,151.65,50.24198995]
[1751845212481,9.26218995,151.72,151.69,6.5912]
[1751845212680,6.5903,151.72,151.69,6.5912]
[1751845215686,6.5906,151.71,151.69,6.5912]
[1751845216186,6.5906,151.71,151.65,50.24198995]
[1751845216187,6.5916,151.69,151.65,45.18]
[1751845216380,2.2857,151.72,151.63,2.67188995]
[1751845216580,4.95758995,151.72,151.69,6.591]
[1751845217384,11.54778995,151.72,151.7,6.5909]
[1751845217788,11.54778995,151.72,151.65,2.67188995]
[1751845217985,11.54778995,151.72,151.69,6.5912]
[1751845218493,11.54778995,151.72,151.65,2.67188995]
[1751845219091,6.5906,151.71,151.65,2.67188995]
[1751845219585,6.5906,151.71,151.68,6.5915]
[1751845221099,4.95758995,151.72,151.64,2.67188995]
[1751845221591,6.5912,151.7,151.67,6.592]
[1751845222593,6.5916,151.69,151.66,6.5924]
[1751845222787,6.5916,151.69,151.64,2.67188995]
[1751845223496,6.5918,151.68,151.64,2.67188995]
[1751845224094,6.5916,151.69,151.64,2.67188995]
[1751845224494,6.5916,151.69,151.66,6.5923]
[1751845228000,6.5916,151.69,151.67,6.5922]
[1751845228200,6.591,151.7,151.67,6.5922]
[1751845229001,6.591,151.7,151.68,6.5917]
[1751845229202,6.591,151.7,151.64,2.67188995]
[1751845229502,6.591,151.7,151.67,6.592]
[1751845232398,6.5907,151.71,151.64,2.67188995]
[1751845232806,2.2857,151.72,151.64,2.67188995]
[1751845233105,6.5912,151.7,151.64,2.67188995]
[1751845234801,6.5915,151.69,151.64,2.67188995]
[1751845235000,2.67188995,151.71,151.64,2.67188995]
[1751845235507,6.5918,151.68,151.66,6.5925]
[1751845239607,6.5915,151.69,151.67,6.5922]
[1751845241008,2.2857,151.72,151.66,1.71311049]
[1751845241207,3.99881049,151.72,151.68,1.71311049]
[1751845241404,2.2857,151.72,151.69,1.71311049]
[1751845241608,8.8783,151.73,151.7,8.30381049]
[1751845241908,4.00141049,151.73,151.7,6.5907]
[1751845242408,6.5903,151.72,151.7,6.5907]
[1751845243509,6.5905,151.71,151.69,6.5912]
[1751845244706,2.67539673,151.71,151.65,2.67539673]
[1751845245612,6.5916,151.69,151.64,5.03819673]
[1751845246314,6.5916,151.69,151.67,6.592]
[1751845246610,6.5912,151.7,151.67,6.592]
[1751845247409,6.5912,151.7,151.68,6.5917]
[1751845248517,6.5912,151.7,151.67,6.592]
[1751845248717,6.5914,151.69,151.67,6.592]
[1751845249719,6.5911,151.7,151.67,6.592]
[1751845249911,6.5911,151.7,151.68,6.5917]
[1751845250417,9.26599673,151.71,151.64,5.03819673]
[1751845251411,9.26599673,151.71,151.68,6.5914]
[1751845251618,4.96369673,151.73,151.64,2.3628]
[1751845251806,4.06416461,151.72,151.66,2.67539673]
[1751845252013,4.96369673,151.73,151.69,6.5914]
[1751845252213,6.5908,151.71,151.69,6.5914]
[1751845254417,6.5908,151.71,151.68,6.5916]
[1751845254613,4.06874144,151.7,151.68,6.5916]
[1751845254818,6.5908,151.71,151.68,6.5916]
[1751845255009,4.06889464,151.7,151.68,6.5916]
[1751845255214,6.5908,151.71,151.68,6.5916]
[1751845255414,4.06929187,151.7,151.68,6.5916]
[1751845255614,6.5908,151.71,151.68,6.5916]
[1751845255822,4.06929407,151.7,151.68,6.5916]
[1751845256016,6.5908,151.71,151.68,6.5916]
[1751845256218,4.06973814,151.7,151.68,6.5916]
[1751845256418,6.5908,151.71,151.68,6.5916]
[1751845256723,10.66073814,151.7,151.68,6.5916]
[1751845257021,6.591,151.7,151.68,6.5916]
[1751845258923,6.5914,151.69,151.67,6.5921]
[1751845260224,2.67539673,151.71,151.64,2.67539673]
[1751845260424,2.67539673,151.69,151.62,2.67539673]
[1751845261022,5.04309673,151.71,151.64,2.67539673]
[1751845261324,14.48261456,151.7,151.64,2.67539673]
[1751845261518,4.09366538,151.69,151.64,2.67539673]
[1751845261824,6.5916,151.69,151.66,6.5926]
[1751845262725,4.09344245,151.68,151.66,6.5926]
[1751845262919,6.5916,151.69,151.66,6.5926]
[1751845263318,6.5916,151.69,151.67,6.5922]
[1751845268925,8.30471064,151.69,151.67,6.5922]
[1751845269627,8.30471064,151.69,151.66,6.5924]
[1751845269824,1.71311064,151.68,151.66,6.5924]
[1751845270023,1.71311064,151.69,151.65,1.71311064]
[1751845270226,1.71311064,151.69,151.67,6.592]
[1751845270729,8.30451064,151.69,151.67,6.592]
[1751845281640,8.30451064,151.69,151.66,6.5924]
[1751845282439,8.30451064,151.69,151.67,6.5922]
[1751845283139,6.5914,151.69,151.67,6.5922]
[1751845283341,8.30451064,151.69,151.67,6.5922]
[1751845283543,8.30451064,151.69,151.66,6.5925]
[1751845284842,8.30451064,151.69,151.67,6.5922]
[1751845286945,6.5914,151.69,151.67,6.5922]
[1751845287244,4.08081064,151.71,151.66,1.71311064]
[1751845287444,4.07490325,151.7,151.66,1.71311064]
[1751845287644,4.08081064,151.71,151.66,1.71311064]
[1751845287946,4.07490189,151.7,151.67,1.71311064]